fUSD/lending_fUSD_20260523
["ID","MTS","AMOUNT","RATE_DAILY","PERIOD"]
[422821690,1779469847000,-649.81911375,0.00014999,2]
[422821695,1779469847000,-630.35,0.00014999,2]
[422821692,1779469847000,-630.35,0.00014999,2]
[422821684,1779469847000,-649.71,0.00014999,2]
[422821689,1779469847000,-649.71,0.00014999,2]
[422821687,1779469847000,-649.71,0.00014999,2]
[422821688,1779469847000,-649.71,0.00014999,2]
[422821685,1779469847000,-649.71,0.00014999,2]
[422821735,1779469848000,-1133.31605001,0.00013652,2]
[422821726,1779469848000,-878.64494776,0.00015,2]
[422821725,1779469848000,-234000.0,0.00015,2]
[422821727,1779469848000,-963.76004824,0.00015,2]
[422821728,1779469848000,-7203.22470885,0.00015,2]
[422821730,1779469848000,-1809.61238,0.00013002,2]
[422821729,1779469848000,-984.80619,0.00013002,2]
[422821731,1779469848000,-180.566345,0.00013193,2]
[422821732,1779469848000,-180.566345,0.00013437,2]
[422821734,1779469848000,-180.566345,0.00013552,2]
[422821733,1779469848000,-180.566345,0.00013552,2]
[422821737,1779469848000,-180.566345,0.00013722,2]
[422821746,1779469848000,-22012.25960526,0.00015,2]
[422821745,1779469848000,-859.9762898,0.00014867,2]
[422821743,1779469848000,-129008.62024661,0.00015,2]
[422821742,1779469848000,-698.317116,0.00014952,2]
[422821744,1779469848000,-144732.64150229,0.00015,2]
[422821739,1779469848000,-118.39385803,0.00015,2]
[422821736,1779469848000,-209.60148199,0.00013652,2]
[422821740,1779469848000,-1036.65328089,0.00015,2]
[422821738,1779469848000,-180.566346,0.00013722,2]
[422821741,1779469848000,-3634.0,0.00013644,2]
[422821756,1779470348000,3456.229562,7.945e-05,2]
[422821765,1779470521000,-1030.37022472,0.0001,2]
[422821764,1779470521000,-321.35981399,0.0001,2]
[422821775,1779470522000,-58.17015635,0.000119,2]
[422821766,1779470522000,-155.63,0.00011247,2]
[422821773,1779470522000,-345.714,0.00011765,2]
[422821772,1779470522000,-5046.193,0.00011765,2]
[422821771,1779470522000,-156.56,0.00011686,2]
[422821769,1779470522000,-1200.0,0.00011378,2]
[422821770,1779470522000,-877.7,0.00011436,2]
[422821768,1779470522000,-300.0,0.0001132,2]
[422821767,1779470522000,-247.18375264,0.00011278,2]
[422821774,1779470522000,-2768.1190523,0.00011843,2]
[422821777,1779470817000,-331.60331257,0.0001,2]
[422821827,1779471032000,-500.0,0.00010599,2]
[422821802,1779471032000,-362.68811795,0.00010599,2]
[422821814,1779471032000,-511.50513278,0.00010599,2]
[422821803,1779471032000,-500.0,0.00010599,2]
[422821804,1779471032000,-500.0,0.00010599,2]
[422821805,1779471032000,-500.0,0.00010599,2]
[422821806,1779471032000,-500.0,0.00010599,2]
[422821810,1779471032000,-456.55320637,0.00010599,2]
[422821809,1779471032000,-43.44679363,0.00010599,2]
[422821808,1779471032000,-479.55320638,0.00010599,2]
[422821811,1779471032000,-500.0,0.00010599,2]
[422821824,1779471032000,-500.0,0.00010599,2]
[422821816,1779471032000,-405.9051759,0.00010599,2]
[422821826,1779471032000,-500.0,0.00010599,2]
[422821818,1779471032000,-500.0,0.00010599,2]
[422821815,1779471032000,-34.76667527,0.00010599,2]
[422821817,1779471032000,-429.40998868,0.00010599,2]
[422821820,1779471032000,-500.0,0.00010599,2]
[422821825,1779471032000,-500.0,0.00010599,2]
[422821823,1779471032000,-500.0,0.00010599,2]
[422821819,1779471032000,-500.0,0.00010599,2]
[422821807,1779471032000,-20.44679362,0.00010599,2]
[422821813,1779471032000,-500.0,0.00010599,2]
[422821791,1779471032000,-500.0,0.00010599,2]
[422821801,1779471032000,-500.0,0.00010599,2]
[422821821,1779471032000,-500.0,0.00010599,2]
[422821779,1779471032000,-57.42216549,0.0001,2]
[422821780,1779471032000,-801.22507853,0.00010545,2]
[422821781,1779471032000,-383.53589349,0.00010545,2]
[422821783,1779471032000,-1299.03109547,0.00010545,2]
[422821784,1779471032000,-340.48204018,0.00010545,2]
[422821785,1779471032000,-7765.62567485,0.00010545,2]
[422821787,1779471032000,-1151.0,0.00010598,2]
[422821786,1779471032000,-300.0,0.00010598,2]
[422821798,1779471032000,-500.0,0.00010599,2]
[422821792,1779471032000,-416.10517513,0.00010599,2]
[422821789,1779471032000,-248.74237809,0.00010599,2]
[422821794,1779471032000,-500.0,0.00010599,2]
[422821793,1779471032000,-500.0,0.00010599,2]
[422821790,1779471032000,-395.77287623,0.00010599,2]
[422821788,1779471032000,-150.0,0.00010598,2]
[422821796,1779471032000,-500.0,0.00010599,2]
[422821799,1779471032000,-500.0,0.00010599,2]
[422821795,1779471032000,-548.96175875,0.00010599,2]
[422821797,1779471032000,-500.0,0.00010599,2]
[422821800,1779471032000,-500.0,0.00010599,2]
[422821812,1779471032000,-500.0,0.00010599,2]
[422821822,1779471032000,-500.0,0.00010599,2]
[422821782,1779471032000,-335.31456548,0.00010545,2]
[422821839,1779471032000,-500.0,0.00010599,2]
[422821866,1779471032000,-500.0,0.00010599,2]
[422821857,1779471032000,-500.0,0.00010599,2]
[422821863,1779471032000,-500.0,0.00010599,2]
[422821867,1779471032000,-500.0,0.00010599,2]
[422821858,1779471032000,-500.0,0.00010599,2]
[422821864,1779471032000,-500.0,0.00010599,2]
[422821865,1779471032000,-500.0,0.00010599,2]
[422821856,1779471032000,-500.0,0.00010599,2]
[422821862,1779471032000,-500.0,0.00010599,2]
[422821868,1779471032000,-500.0,0.00010599,2]
[422821849,1779471032000,-500.0,0.00010599,2]
[422821860,1779471032000,-500.0,0.00010599,2]
[422821859,1779471032000,-500.0,0.00010599,2]
[422821869,1779471032000,-272.18899588,0.00010599,2]
[422821875,1779471032000,-500.0,0.00010599,2]
[422821870,1779471032000,-227.81100412,0.00010599,2]
[422821871,1779471032000,-500.0,0.00010599,2]
[422821877,1779471032000,-500.0,0.00010599,2]
[422821873,1779471032000,-500.0,0.00010599,2]
[422821872,1779471032000,-500.0,0.00010599,2]
[422821874,1779471032000,-500.0,0.00010599,2]
[422821876,1779471032000,-500.0,0.00010599,2]
[422821861,1779471032000,-500.0,0.00010599,2]
[422821842,1779471032000,-500.0,0.00010599,2]
[422821829,1779471032000,-500.0,0.00010599,2]
[422821848,1779471032000,-500.0,0.00010599,2]
[422821847,1779471032000,-262.51756845,0.00010599,2]
[422821840,1779471032000,-500.0,0.00010599,2]
[422821841,1779471032000,-500.0,0.00010599,2]
[422821831,1779471032000,-500.0,0.00010599,2]
[422821838,1779471032000,-500.0,0.00010599,2]
[422821828,1779471032000,-500.0,0.00010599,2]
[422821832,1779471032000,-500.0,0.00010599,2]
[422821835,1779471032000,-500.0,0.00010599,2]
[422821830,1779471032000,-500.0,0.00010599,2]
[422821834,1779471032000,-500.0,0.00010599,2]
[422821837,1779471032000,-500.0,0.00010599,2]
[422821836,1779471032000,-500.0,0.00010599,2]
[422821852,1779471032000,-500.0,0.00010599,2]
[422821851,1779471032000,-500.0,0.00010599,2]
[422821853,1779471032000,-500.0,0.00010599,2]
[422821854,1779471032000,-500.0,0.00010599,2]
[422821843,1779471032000,-500.0,0.00010599,2]
[422821846,1779471032000,-500.0,0.00010599,2]
[422821845,1779471032000,-500.0,0.00010599,2]
[422821850,1779471032000,-500.0,0.00010599,2]
[422821855,1779471032000,-500.0,0.00010599,2]
[422821833,1779471032000,-500.0,0.00010599,2]
[422821844,1779471032000,-500.0,0.00010599,2]
[422821889,1779471033000,-500.0,0.00010599,2]
[422821882,1779471033000,-500.0,0.00010599,2]
[422821886,1779471033000,-500.0,0.00010599,2]
[422821885,1779471033000,-500.0,0.00010599,2]
[422821884,1779471033000,-500.0,0.00010599,2]
[422821878,1779471033000,-500.0,0.00010599,2]
[422821881,1779471033000,-500.0,0.00010599,2]
[422821880,1779471033000,-95.4682203,0.00010599,2]
[422821879,1779471033000,-404.5317797,0.00010599,2]
[422821892,1779471033000,-500.0,0.00010599,2]
[422821883,1779471033000,-500.0,0.00010599,2]
[422821888,1779471033000,-627.02228616,0.00010599,2]
[422821893,1779471033000,-500.0,0.00010599,2]
[422821891,1779471033000,-500.0,0.00010599,2]
[422821890,1779471033000,-500.0,0.00010599,2]
[422821898,1779471033000,-500.0,0.00010599,2]
[422821902,1779471033000,-48540.95371785,0.000106,2]
[422821899,1779471033000,-500.0,0.00010599,2]
[422821897,1779471033000,-500.0,0.00010599,2]
[422821901,1779471033000,-500.0,0.00010599,2]
[422821896,1779471033000,-500.0,0.00010599,2]
[422821900,1779471033000,-500.0,0.00010599,2]
[422821894,1779471033000,-500.0,0.00010599,2]
[422821887,1779471033000,-500.0,0.00010599,2]
[422821895,1779471033000,-500.0,0.00010599,2]
[422821903,1779471033000,-3809.40052919,0.000106,2]
[422821920,1779471038000,-1273.55046578,0.000106,2]
[422821921,1779471038000,-300.72668511,0.000106,2]
[422821919,1779471038000,-267.51321826,0.000106,2]
[422821918,1779471038000,-472.1,0.000106,2]
[422821984,1779471040000,-444.37922151,0.000106,2]
[422821983,1779471040000,-876.728273,0.000106,2]
[422821982,1779471040000,-198.65331207,0.0001059,2]
[422821985,1779471040000,-327.66026881,0.000106,2]
[422821986,1779471040000,-770.47999998,0.000106,2]
[422822013,1779471046000,-13949.76811175,0.000106,2]
[422822012,1779471046000,-93258.82699001,0.000106,2]
[422822011,1779471046000,-500.0,0.00010599,2]
[422822014,1779471067000,3668.96855,7.945e-05,2]
[422822016,1779471087000,1467.84,5.774e-05,2]
[422822020,1779471088000,1467.84,6.989e-05,2]
[422822021,1779471088000,1467.84,7.293e-05,2]
[422822017,1779471088000,1467.84,6.078e-05,2]
[422822018,1779471088000,1467.84,6.382e-05,2]
[422822019,1779471088000,1467.84,6.685e-05,2]
[422822025,1779471089000,1467.84,8.509e-05,2]
[422822024,1779471089000,1467.84,8.205e-05,2]
[422822023,1779471089000,1467.84,7.901e-05,2]
[422822022,1779471089000,1467.84,7.597e-05,2]
[422822026,1779471112000,-215.23956962,8.813e-05,2]
[422822028,1779471230000,-208.68854764,8.813e-05,2]
[422822029,1779471349000,-250.0,8.811e-05,2]
[422822033,1779471466000,-300.0,8.802e-05,2]
[422822036,1779471660000,8610.42,8.564e-05,2]
[422822037,1779471686000,-300.0,8.802e-05,2]
[422822038,1779471690000,533.22,8.564e-05,2]
[422822039,1779471767000,6584.62,8.584e-05,2]
[422822040,1779471808000,2849.45,8.564e-05,2]
[422822041,1779471817000,3489.5,8.564e-05,2]
[422822042,1779471837000,653.92,8.619e-05,2]
[422822043,1779471862000,200.0,8.546e-05,2]
[422822044,1779471868000,5530.0,0.00011,3]
[422822045,1779471897000,-1200.0,8.802e-05,2]
[422822046,1779471898000,535.36,8.56e-05,2]
[422822047,1779471899000,199.0,0.00011,3]
[422822050,1779471923000,162.59,8.603e-05,2]
[422822049,1779471923000,162.59,4.302e-05,2]
[422822051,1779471951000,-511.0,8.802e-05,2]
[422822052,1779471973000,1016.7,8.176e-05,2]
[422822053,1779472004000,-1200.0,8.802e-05,2]
[422822054,1779472057000,-250.0,8.802e-05,2]
[422822055,1779472074000,178.51,8.219e-05,2]
[422822056,1779472081000,16546.96,8.194e-05,2]
[422822057,1779472085000,5530.0,0.00011,5]
[422822058,1779472111000,-300.0,8.802e-05,2]
[422822059,1779472163000,-300.0,8.802e-05,2]
[422822060,1779472166000,-1746.76413265,8.803e-05,2]
[422822061,1779472217000,-1200.0,8.802e-05,2]
[422822089,1779472231000,-208.7374384,8.826e-05,2]
[422822083,1779472231000,-500.0,8.812e-05,2]
[422822090,1779472231000,-299.0,8.89e-05,2]
[422822088,1779472231000,-1043.91188274,8.813e-05,2]
[422822092,1779472231000,-299.0,8.978e-05,2]
[422822085,1779472231000,-500.0,8.812e-05,2]
[422822086,1779472231000,-308.62312837,8.812e-05,2]
[422822087,1779472231000,-500.0,8.812e-05,2]
[422822093,1779472231000,-167.72,9.015e-05,2]
[422822084,1779472231000,-500.0,8.812e-05,2]
[422822077,1779472231000,-171.80797867,8.812e-05,2]
[422822078,1779472231000,-500.0,8.812e-05,2]
[422822079,1779472231000,-500.0,8.812e-05,2]
[422822081,1779472231000,-500.0,8.812e-05,2]
[422822080,1779472231000,-500.0,8.812e-05,2]
[422822091,1779472231000,-560.48,8.913e-05,2]
[422822073,1779472231000,-430.04872724,8.803e-05,2]
[422822075,1779472231000,-150.0,8.811e-05,2]
[422822076,1779472231000,-156.21168621,8.812e-05,2]
[422822072,1779472231000,-2247.63760254,8.803e-05,2]
[422822071,1779472231000,-8153.8,8.803e-05,2]
[422822082,1779472231000,-500.0,8.812e-05,2]
[422822094,1779472231000,-2000.0,9.054e-05,2]
[422822074,1779472231000,-1825.07890105,8.803e-05,2]
[422822095,1779472231000,-299.0,9.066e-05,2]
[422822097,1779472231000,-921.1142,9.07e-05,2]
[422822132,1779472231000,-1467.84,9.724e-05,2]
[422822122,1779472231000,-299.0,9.594e-05,2]
[422822126,1779472231000,-299.0,9.682e-05,2]
[422822135,1779472231000,-150.0,9.986e-05,2]
[422822127,1779472231000,-1680.0,9.682e-05,2]
[422822118,1779472231000,-299.0,9.506e-05,2]
[422822130,1779472231000,-255.0,9.692e-05,2]
[422822120,1779472231000,-167.72,9.511e-05,2]
[422822115,1779472231000,-1467.84,9.42e-05,2]
[422822113,1779472231000,-299.0,9.418e-05,2]
[422822124,1779472231000,-533.22,9.635e-05,2]
[422822110,1779472231000,-178.51,9.247e-05,2]
[422822105,1779472231000,-299.0,9.154e-05,2]
[422822108,1779472231000,-299.0,9.242e-05,2]
[422822099,1779472231000,-16539.0,9.088e-05,2]
[422822104,1779472231000,-13310.0,9.143e-05,2]
[422822100,1779472231000,-12390.0,9.106e-05,2]
[422822101,1779472231000,-1467.84,9.117e-05,2]
[422822102,1779472231000,-15036.0,9.124e-05,2]
[422822098,1779472231000,-7777.84637682,9.07e-05,2]
[422822112,1779472231000,-299.0,9.33e-05,2]
[422822096,1779472231000,-3169.03942318,9.07e-05,2]
[422822192,1779472232000,-150.0,0.00010603,2]
[422822189,1779472232000,-6509.9742431,0.00010597,2]
[422822183,1779472232000,-150.0,0.00010541,2]
[422822188,1779472232000,-500.0,0.00010575,2]
[422822184,1779472232000,-150.0,0.00010541,2]
[422822185,1779472232000,-150.0,0.00010541,2]
[422822190,1779472232000,-827.18086267,0.00010599,2]
[422822181,1779472232000,-167.72,0.00010503,2]
[422822191,1779472232000,-1400.52537883,0.00010599,2]
[422822186,1779472232000,-150.0,0.00010541,2]
[422822194,1779472232000,-2351.0,0.0001065,2]
[422822210,1779472232000,-251.158888,0.00010877,2]
[422822197,1779472232000,-1455.023816,0.00010682,2]
[422822196,1779472232000,-150.0,0.00010664,2]
[422822198,1779472232000,-56770.66748338,0.000107,2]
[422822200,1779472232000,-150.0,0.00010726,2]
[422822199,1779472232000,-533.22,0.00010705,2]
[422822195,1779472232000,-433.0,0.00010661,2]
[422822201,1779472232000,-150.0,0.00010726,2]
[422822202,1779472232000,-165.34,0.00010779,2]
[422822205,1779472232000,-150.0,0.00010818,2]
[422822187,1779472232000,-3127.1850198,0.00010553,2]
[422822203,1779472232000,-150.0,0.00010788,2]
[422822193,1779472232000,-1467.84,0.00010636,2]
[422822182,1779472232000,-165.34,0.00010529,2]
[422822168,1779472232000,-150.0,0.00010233,2]
[422822175,1779472232000,-150.0,0.00010356,2]
[422822206,1779472232000,-150.0,0.00010849,2]
[422822137,1779472232000,-150.0,9.986e-05,2]
[422822141,1779472232000,-150.0,9.986e-05,2]
[422822139,1779472232000,-150.00000001,9.986e-05,2]
[422822146,1779472232000,-150.0,9.986e-05,2]
[422822144,1779472232000,-150.0,9.986e-05,2]
[422822153,1779472232000,-167.72,0.00010007,2]
[422822148,1779472232000,-150.0,9.986e-05,2]
[422822157,1779472232000,-1467.84,0.00010028,2]
[422822150,1779472232000,-150.0,9.986e-05,2]
[422822162,1779472232000,-150.0,0.0001011,2]
[422822180,1779472232000,-150.0,0.00010479,2]
[422822155,1779472232000,-165.34,0.00010027,2]
[422822164,1779472232000,-150.0,0.00010171,2]
[422822166,1779472232000,-2000.0,0.00010186,2]
[422822179,1779472232000,-150.0,0.00010418,2]
[422822170,1779472232000,-150.0,0.00010264,2]
[422822172,1779472232000,-165.34,0.00010278,2]
[422822173,1779472232000,-150.0,0.00010295,2]
[422822171,1779472232000,-178.51,0.00010274,2]
[422822178,1779472232000,-173.08176462,0.00010403,2]
[422822176,1779472232000,-150.0,0.00010356,2]
[422822177,1779472232000,-265.36532742,0.000104,2]
[422822174,1779472232000,-1467.84,0.00010332,2]
[422822160,1779472232000,-150.0,0.00010048,2]
[422822209,1779472232000,-1017.422707,0.00010877,2]
[422822230,1779472232000,-2000.0,0.00011318,2]
[422822207,1779472232000,-2019.14959,0.00010877,2]
[422822233,1779472232000,-1467.84,0.00011548,2]
[422822240,1779472232000,-152.0,0.00012266,3]
[422822241,1779472232000,-215.27762834,0.00012311,2]
[422822244,1779472232000,-3838.28727541,0.0001239,2]
[422822239,1779472232000,-14657.47575756,0.00011902,2]
[422822250,1779472232000,-304.0,0.00012886,2]
[422822242,1779472232000,-641.34,0.00012329,2]
[422822243,1779472232000,-178.51,0.00012329,2]
[422822246,1779472232000,-2000.0,0.00012449,2]
[422822247,1779472232000,-3941.6077057,0.00012472,2]
[422822245,1779472232000,-500.0,0.00012392,2]
[422822249,1779472232000,-533.22,0.00012846,2]
[422822248,1779472232000,-202.22761757,0.00012666,2]
[422822251,1779472232000,-225.0,0.00012899,2]
[422822254,1779472232000,-169.33,0.00013144,2]
[422822253,1779472232000,-392.0,0.00013116,5]
[422822255,1779472232000,-169.33,0.00013144,2]
[422822252,1779472232000,-388.0,0.00013116,5]
[422822256,1779472232000,-169.33,0.00013144,2]
[422822260,1779472232000,-2240.13,0.00013608,2]
[422822257,1779472232000,-285.0,0.00013169,5]
[422822261,1779472232000,-1355.0,0.00013692,2]
[422822259,1779472232000,-2000.0,0.00013581,2]
[422822236,1779472232000,-736.0,0.00011727,2]
[422822237,1779472232000,-533.22,0.00011776,2]
[422822204,1779472232000,-361.0,0.00010795,2]
[422822235,1779472232000,-3292.0,0.00011715,2]
[422822211,1779472232000,-3838.28727542,0.000109,2]
[422822212,1779472232000,-3838.28727541,0.000109,2]
[422822208,1779472232000,-408.930459,0.00010877,2]
[422822213,1779472232000,-3838.28727541,0.000109,2]
[422822215,1779472232000,-1467.84,0.0001094,2]
[422822225,1779472232000,-150.00000001,0.00011096,2]
[422822234,1779472232000,-3838.28727541,0.00011553,2]
[422822222,1779472232000,-150.0,0.00011096,2]
[422822214,1779472232000,-150.0,0.00010911,2]
[422822217,1779472232000,-500.0,0.00010986,2]
[422822220,1779472232000,-155.58048581,0.00011096,2]
[422822223,1779472232000,-150.0,0.00011096,2]
[422822226,1779472232000,-14657.47575758,0.00011099,2]
[422822216,1779472232000,-150.0,0.00010973,2]
[422822218,1779472232000,-165.34,0.0001103,2]
[422822221,1779472232000,-150.0,0.00011096,2]
[422822224,1779472232000,-289.2756017,0.00011096,2]
[422822227,1779472232000,-14657.47575756,0.00011099,2]
[422822228,1779472232000,-1467.84,0.00011244,2]
[422822238,1779472232000,-1728.17984365,0.000119,2]
[422822231,1779472232000,-14657.47575756,0.00011402,2]
[422822258,1779472232000,-3838.28727541,0.00013227,2]
[422822229,1779472232000,-178.51,0.00011301,2]
[422822232,1779472232000,-159.45,0.00011408,2]
[422822219,1779472232000,-150.0,0.00011034,2]
[422822301,1779472233000,-500.0,0.00014,2]
[422822298,1779472233000,-697.7692942,0.00014,2]
[422822292,1779472233000,-166.66,0.00013699,2]
[422822295,1779472233000,-152.0,0.00013888,4]
[422822290,1779472233000,-623.51818685,0.00013698,2]
[422822294,1779472233000,-166.66,0.00013836,2]
[422822296,1779472233000,-166.66,0.00013973,2]
[422822291,1779472233000,-231.55098995,0.00013698,2]
[422822293,1779472233000,-200.0,0.00013699,2]
[422822297,1779472233000,-423.14155518,0.0001399,2]
[422822311,1779472233000,-500.0,0.00014,2]
[422822314,1779472233000,-500.0,0.00014,2]
[422822304,1779472233000,-500.0,0.00014,2]
[422822303,1779472233000,-500.0,0.00014,2]
[422822305,1779472233000,-500.0,0.00014,2]
[422822302,1779472233000,-500.0,0.00014,2]
[422822306,1779472233000,-500.0,0.00014,2]
[422822309,1779472233000,-500.0,0.00014,2]
[422822308,1779472233000,-500.0,0.00014,2]
[422822310,1779472233000,-500.0,0.00014,2]
[422822307,1779472233000,-500.0,0.00014,2]
[422822313,1779472233000,-564.29,0.00014,2]
[422822312,1779472233000,-500.0,0.00014,2]
[422822288,1779472233000,-500.0,0.00013698,2]
[422822300,1779472233000,-500.0,0.00014,2]
[422822299,1779472233000,-250.0,0.00014,2]
[422822275,1779472233000,-500.0,0.00013698,2]
[422822278,1779472233000,-407.28330483,0.00013698,2]
[422822263,1779472233000,-625.0,0.00013692,2]
[422822315,1779472233000,-500.0,0.00014,2]
[422822264,1779472233000,-927.0,0.00013692,2]
[422822265,1779472233000,-1271.0,0.00013692,2]
[422822266,1779472233000,-1224.0,0.00013692,2]
[422822276,1779472233000,-500.0,0.00013698,2]
[422822267,1779472233000,-150.0,0.00013692,2]
[422822269,1779472233000,-150.0,0.00013692,2]
[422822268,1779472233000,-150.0,0.00013692,2]
[422822270,1779472233000,-934.8,0.00013692,2]
[422822274,1779472233000,-500.0,0.00013698,2]
[422822289,1779472233000,-500.0,0.00013698,2]
[422822271,1779472233000,-150.0,0.00013692,2]
[422822272,1779472233000,-500.0,0.00013698,2]
[422822277,1779472233000,-500.0,0.00013698,2]
[422822279,1779472233000,-500.0,0.00013698,2]
[422822280,1779472233000,-500.0,0.00013698,2]
[422822281,1779472233000,-500.0,0.00013698,2]
[422822287,1779472233000,-503.47273161,0.00013698,2]
[422822285,1779472233000,-500.0,0.00013698,2]
[422822283,1779472233000,-500.0,0.00013698,2]
[422822286,1779472233000,-307.08,0.00013698,2]
[422822284,1779472233000,-500.0,0.00013698,2]
[422822282,1779472233000,-500.0,0.00013698,2]
[422822273,1779472233000,-500.0,0.00013698,2]
[422822324,1779472233000,-163.0,0.0001404,2]
[422822262,1779472233000,-3546.0,0.00013692,2]
[422822317,1779472233000,-500.0,0.00014,2]
[422822345,1779472233000,-10000.0,0.00014684,2]
[422822344,1779472233000,-163.0,0.0001468,2]
[422822352,1779472233000,-1000.0,0.00014796,2]
[422822349,1779472233000,-158.0,0.00014702,2]
[422822350,1779472233000,-155.6933743,0.00014769,2]
[422822351,1779472233000,-1000.0,0.0001479,2]
[422822359,1779472233000,-1243.38282,0.0001485,2]
[422822354,1779472233000,-308.0,0.000148,2]
[422822356,1779472233000,-1000.0,0.00014831,2]
[422822360,1779472233000,-1243.38282,0.0001485,2]
[422822358,1779472233000,-1243.38282,0.0001485,2]
[422822339,1779472233000,-200.0,0.00014543,2]
[422822355,1779472233000,-1000.0,0.00014825,2]
[422822357,1779472233000,-6111.0,0.00014841,2]
[422822362,1779472233000,-1041.51225904,0.00014853,2]
[422822361,1779472233000,-1000.0,0.00014853,2]
[422822363,1779472233000,-1000.0,0.00014876,2]
[422822364,1779472233000,-161.0,0.0001488,2]
[422822366,1779472233000,-151.0,0.00014897,2]
[422822365,1779472233000,-1000.0,0.00014884,2]
[422822368,1779472233000,-3838.28727541,0.000149,2]
[422822369,1779472233000,-160022.62422561,0.00015,2]
[422822367,1779472233000,-8167.40064099,0.000149,2]
[422822370,1779472233000,-44379.92718056,0.00015,2]
[422822353,1779472233000,-1000.0,0.000148,2]
[422822347,1779472233000,-1000.0,0.00014693,2]
[422822371,1779472233000,-23304.83095132,0.00015,2]
[422822342,1779472233000,-1000.0,0.00014658,2]
[422822346,1779472233000,-1000.0,0.00014689,2]
[422822316,1779472233000,-500.0,0.00014,2]
[422822320,1779472233000,-500.0,0.00014,2]
[422822321,1779472233000,-500.0,0.00014,2]
[422822319,1779472233000,-500.0,0.00014,2]
[422822318,1779472233000,-507.72,0.00014,2]
[422822322,1779472233000,-1588.0,0.0001404,2]
[422822325,1779472233000,-4156.875,0.0001404,2]
[422822328,1779472233000,-166.66,0.0001411,2]
[422822326,1779472233000,-276.571,0.0001404,2]
[422822329,1779472233000,-37154.18738249,0.000142,2]
[422822327,1779472233000,-3838.28727541,0.00014063,2]
[422822323,1779472233000,-163.0,0.0001404,2]
[422822335,1779472233000,-1588.0,0.0001436,2]
[422822330,1779472233000,-166.66,0.00014247,2]
[422822341,1779472233000,-1000.0,0.00014652,2]
[422822340,1779472233000,-97439.86899405,0.0001455,7]
[422822337,1779472233000,-480.7,0.00014514,2]
[422822348,1779472233000,-4281.21714448,0.000147,2]
[422822343,1779472233000,-2335.0,0.0001468,2]
[422822333,1779472233000,-241.26961426,0.00014298,2]
[422822332,1779472233000,-200.0,0.00014252,2]
[422822331,1779472233000,-69162.95766172,0.0001425,2]
[422822334,1779472233000,-350.0,0.00014345,2]
[422822336,1779472233000,-166.66,0.00014384,2]
[422822338,1779472233000,-480.7,0.00014524,2]
[422822373,1779472234000,-781.44564402,0.00015,2]
[422822372,1779472234000,-13349.69276927,0.00015,2]
[422822374,1779472234000,-0.94414223,0.00015,2]
[422822376,1779472234000,-2070.84698,0.00015,2]
[422822377,1779472234000,-1873.69118943,0.00013692,2]
[422822378,1779472234000,-4185.30881057,0.00013692,2]
[422822375,1779472234000,-2392.63152663,0.00015,2]
[422822379,1779472234000,-3867.76373682,0.00015,2]
[422822393,1779472237000,-500.0,0.000147,2]
[422822384,1779472237000,-1989.78566357,0.00012402,2]
[422822388,1779472237000,-3426.19971035,0.00012402,2]
[422822387,1779472237000,-389.74,0.00012402,2]
[422822389,1779472237000,-5514.11766897,0.00012402,2]
[422822390,1779472237000,-423.51833482,0.00012402,2]